fUSD/lending_fUSD_20240718
["ID","MTS","AMOUNT","RATE_DAILY","PERIOD"]
[332600803,1721333431699,-19718.06853776,0.0001479,2]
[332600804,1721333431710,-621.39302271,0.0001479,2]
[332600805,1721333431721,-2034.51281324,0.0001479,2]
[332600806,1721333431732,-498.13056231,0.0001479,2]
[332600807,1721333431825,-1280.56006859,0.0001479,2]
[332600808,1721333431838,-449.59596603,0.0001479,2]
[332600809,1721333431950,-1684.86444504,0.0001479,2]
[332600810,1721333431961,-530.0,0.0001479,2]
[332600811,1721333432007,-4906.64703926,0.0001479,2]
[332600844,1721333437703,-40673.91777445,0.0001479,2]
[332600845,1721333437715,-4507.2485779,0.0001479,2]
[332600846,1721333437727,-39298.94965671,0.0001479,2]
[332600847,1721333437737,-150.0,0.00015,2]
[332600848,1721333437746,-400.0,0.00015124,2]
[332600849,1721333437759,-10308.1959,0.00015197,2]
[332600850,1721333437768,-1081.18,0.00015631,2]
[332600851,1721333437778,-200.0,0.00017,2]
[332600852,1721333437787,-400.0,0.00017014,2]
[332600853,1721333437797,-999.99,0.0001726,2]
[332600854,1721333437806,-499.99,0.00017534,2]
[332600855,1721333437815,-349.96,0.00018576,2]
[332600856,1721333437825,-400.0,0.00018905,2]
[332600857,1721333437834,-250.0,0.00019,2]
[332600858,1721333437844,-155.29917121,0.0001951,2]
[332600859,1721333437854,-155.29917121,0.00019661,2]
[332600860,1721333437863,-155.29917121,0.00019763,2]
[332600861,1721333437872,-153.88854848,0.00019843,2]
[332600862,1721333437882,-250.0,0.00020472,2]
[332600863,1721333437891,-496.89,0.00020473,2]
[332600864,1721333437900,-155.29917121,0.00020625,2]
[332600865,1721333437909,-400.0,0.00020795,2]
[332600866,1721333437919,-165.92612168,0.0002083,2]
[332600867,1721333437928,-349.96,0.0002084,2]
[332600868,1721333437937,-153.88854848,0.00020851,2]
[332600869,1721333437947,-14946.59,0.00020864,2]
[332600870,1721333437957,-54805.79701883,0.000209,2]
[332600871,1721333437966,-250.0,0.00020948,2]
[332600873,1721333437976,-23900.0,0.00020979,2]
[332600874,1721333437985,-300.0,0.00021,2]
[332600876,1721333437994,-1000.0,0.00021032,5]
[332600877,1721333438003,-1501.0,0.000211,2]
[332600878,1721333438013,-175.95,0.00021229,2]
[332600879,1721333438023,-150.0,0.00021407,2]
[332600881,1721333438033,-235.1,0.00021644,2]
[332600883,1721333438042,-154.04,0.00021644,2]
[332600885,1721333438052,-152.38095237,0.00021915,2]
[332600887,1721333438061,-150.0,0.00021918,2]
[332600889,1721333438071,-204.58,0.00021918,2]
[332600891,1721333438080,-166.5,0.00021918,2]
[332600894,1721333438090,-155.29917121,0.00022306,2]
[332600897,1721333438099,-155.82428155,0.00022326,2]
[332600899,1721333438108,-155.30247153,0.00022386,2]
[332600901,1721333438118,-10626.74624102,0.00022387,2]
[332600903,1721333438129,-591.4607645,0.00022387,2]
[332600905,1721333438141,-43587.59001327,0.00022387,2]
[332600907,1721333438151,-606.0,0.00022454,2]
[332600909,1721333438160,-150.0,0.00022562,2]
[332600911,1721333438171,-1000.0,0.00022629,2]
[332600913,1721333438183,-400.0,0.00022686,2]
[332600916,1721333438196,-159.68,0.00022788,2]
[332600918,1721333438206,-200.0,0.00023,2]
[332600920,1721333438217,-350.0,0.00023,2]
[332600922,1721333438227,-349.96,0.00023104,2]
[332600924,1721333438236,-150.83666498,0.00023116,2]
[332600926,1721333438246,-150.0,0.00023207,2]
[332600928,1721333438255,-150.0,0.00023852,2]
[332600930,1721333438266,-15430.2364321,0.00023874,2]
[332600933,1721333438284,-1157.93097171,0.00023874,2]
[332600935,1721333438295,-415.08101052,0.00023874,2]
[332600938,1721333438316,-1879.55355941,0.00023874,2]
[332600941,1721333438327,-3586.30757977,0.00023874,2]
[332600943,1721333438338,-410.19142791,0.00023874,2]
[332600945,1721333438354,-869.19947107,0.00023874,2]
[332600948,1721333438365,-2065.0,0.00023874,2]
[332600956,1721333438435,-331.29188935,0.00023874,2]
[332600975,1721333438618,-381.40369536,0.00023874,2]
[332601090,1721333439702,-1641.30252,0.00023874,2]
[332601092,1721333439713,-728.05842579,0.00023874,2]
[332601095,1721333439724,-861.78488582,0.00023874,2]
[332601099,1721333439756,-335.25434215,0.00023874,2]
[332601101,1721333439769,-400.0,0.00023874,2]
[332601104,1721333439780,-2156.45869733,0.00023874,2]
[332601106,1721333439792,-434.4,0.00023874,2]
[332601114,1721333439865,-17965.72626211,0.00023874,2]
[332601117,1721333439876,-3017.256,0.00023874,2]
[332601119,1721333439887,-739.35984839,0.00023874,2]
[332601121,1721333439896,-155.0,0.00024,2]
[332601123,1721333439905,-1986.06498561,0.00024,2]
[332601127,1721333439936,-24770.00448628,0.00024,2]
[332601129,1721333439945,-151.25604288,0.00024116,2]
[332601131,1721333439954,-150.0,0.00024496,2]
[332601133,1721333439963,-154.92997943,0.00024943,2]
[332601135,1721333439973,-150.0,0.00025141,2]
[332601137,1721333439983,-1501.0,0.000252,2]
[332601138,1721333439992,-18204.29856737,0.00025361,2]
[332601151,1721333440104,-987.5957348,0.00025361,2]
[332601154,1721333440115,-362.572002,0.00025361,2]
[332601156,1721333440126,-303.27304,0.00025361,2]
[332601158,1721333440137,-424.91956579,0.00025361,2]
[332601191,1721333440439,-12666.04355414,0.00025361,2]
[332601193,1721333440455,-21857.09455469,0.00025361,2]
[332601195,1721333440467,-349.96,0.00025368,2]
[332601197,1721333440476,-1000.0,0.00025458,2]
[332601199,1721333440486,-150.0,0.00025786,2]
[332601201,1721333440495,-155.82428155,0.00026046,2]
[332601204,1721333440507,-155.82428155,0.00026187,2]
[332601206,1721333440518,-150.0,0.0002643,2]
[332601208,1721333440527,-155.82428155,0.0002648,2]
[332601210,1721333440536,-151.84947485,0.00026736,2]
[332601212,1721333440545,-155.29917121,0.00026827,2]
[332601213,1721333440554,-7120.90177897,0.00026848,2]
[332601216,1721333440566,-5817.36961262,0.00026848,2]
[332601218,1721333440577,-41867.5256272,0.00026848,2]
[332601220,1721333440586,-1630.38532891,0.00026968,28]
[332601222,1721333440596,-150.0,0.00027075,2]
[332601224,1721333440605,-349.96,0.00027632,2]
[332601226,1721333440616,-235.1,0.00027714,2]
[332601228,1721333440626,-150.0,0.00027719,2]
[332601230,1721333440635,-200.0,0.000278,10]
[332601232,1721333440644,-321.99150957,0.0002789,2]
[332601234,1721333440654,-166.7541308,0.00027897,2]
[332601236,1721333440662,-162.30891772,0.000279,2]
[332601238,1721333440672,-169.84462218,0.000279,2]
[332601240,1721333440681,-215.08383658,0.000279,2]
[332601242,1721333440692,-500.0,0.000279,10]
[332601244,1721333440701,-150.94,0.0002798,2]
[332601246,1721333440711,-136.78100104,0.0002799,4]
[332601248,1721333440722,-5669.09445492,0.0002799,4]
[332601251,1721333440742,-56469.86314274,0.0002799,4]
[332601253,1721333440754,-1369.38189969,0.0002799,4]
[332601255,1721333440767,-4128.63986883,0.0002799,4]
[332601257,1721333440778,-3933.36463944,0.0002799,4]
[332601259,1721333440790,-3357.71839026,0.0002799,4]
[332601262,1721333440801,-5680.60303379,0.0002799,4]
[332601264,1721333440814,-25112.90338835,0.0002799,4]
[332601266,1721333440825,-1617.592005,0.0002799,4]
[332601268,1721333440836,-1363.68834929,0.0002799,4]
[332601275,1721333440903,-386.51927505,0.0002799,4]
[332601318,1721333442810,-32783.87196871,0.0002799,4]
[332601323,1721333443523,-2555.42022918,0.0002799,4]
[332601325,1721333443535,-302.0,0.0002799,4]
[332601327,1721333443546,-567.63859501,0.0002799,4]
[332601328,1721333443558,-11480.87,0.0002799,4]
[332601329,1721333443569,-1134.31999994,0.0002799,4]
[332601330,1721333443581,-912.45,0.0002799,4]
[332601344,1721333445755,-3183.25,0.0002799,4]
[332601345,1721333445790,-417.40272223,0.0002799,4]
[332601346,1721333445801,-344.849717,0.0002799,4]
[332601347,1721333445823,-453.46218221,0.0002799,4]
[332601348,1721333445835,-460.65712765,0.0002799,4]
[332601349,1721333445847,-623.04947874,0.0002799,4]
[332601350,1721333445858,-1919.57705919,0.0002799,4]
[332601351,1721333445881,-307.44854805,0.0002799,4]
[332601352,1721333445893,-611.967,0.0002799,4]
[332601353,1721333445905,-371.88291753,0.0002799,4]
[332601354,1721333445916,-1324.8,0.0002799,4]
[332601355,1721333445929,-3070.53819964,0.0002799,4]
[332601356,1721333446064,-537.36617303,0.0002799,4]
[332601357,1721333446075,-340.794595,0.0002799,4]
[332601358,1721333446086,-310.531547,0.0002799,4]
[332601792,1721333807109,542.85,0.0002,10]
[332601793,1721333823517,271.43,0.0002,10]
[332601799,1721334357754,160.0299039,6.94e-05,2]
[332601800,1721334357777,160.0299039,6.94e-05,2]
[332601801,1721334357805,160.0299039,6.94e-05,2]
[332601802,1721334357827,160.0299039,6.94e-05,2]
[332601803,1721334357848,160.0299039,6.94e-05,2]
[332601804,1721334357870,160.0299039,6.94e-05,2]
[332601805,1721334357892,160.0299039,6.94e-05,2]
[332601806,1721334357913,160.0299039,6.94e-05,2]
[332601807,1721334357935,160.0299039,6.94e-05,2]
[332601808,1721334357959,160.0299039,6.94e-05,2]
[332601809,1721334357983,160.0299039,6.94e-05,2]
[332601810,1721334358005,160.0299039,6.94e-05,2]
[332601811,1721334358027,160.0299039,6.94e-05,2]
[332601812,1721334358049,160.0299039,6.94e-05,2]
[332601813,1721334358072,160.0299039,6.94e-05,2]
[332601814,1721334358094,160.0299039,6.94e-05,2]
[332601815,1721334358118,160.0299039,6.94e-05,2]
[332601816,1721334358140,160.0299039,6.94e-05,2]
[332601817,1721334358162,160.0299039,6.94e-05,2]
[332601818,1721334358183,160.0299039,6.94e-05,2]
[332601819,1721334358213,12862.14411947,6.94e-05,2]
[332601825,1721334429553,-200.0,0.000134,4]
[332601828,1721334431666,-406.93261158,0.000135,4]
[332601829,1721334443807,150.0,0.00013036,2]
[332601830,1721334453920,150.0,6.94e-05,2]
[332601831,1721334453944,150.0,6.94e-05,2]
[332601832,1721334453969,150.0,6.94e-05,2]
[332601833,1721334453992,150.0,6.94e-05,2]
[332601834,1721334454015,150.0,6.94e-05,2]
[332601835,1721334469344,150.0,0.00013036,2]
[332601836,1721334469365,5.0,0.00013036,2]
[332601841,1721334531150,155.0,0.00013036,2]
[332601842,1721334544927,150.0,0.00013036,2]
[332601843,1721334544949,31.44375561,0.00013036,2]
[332601852,1721334558603,257.13596949,0.00013036,2]
[332601862,1721334612433,150.0,0.00011559,2]
[332601863,1721334612454,17.82,0.00011559,2]
[332601865,1721334625761,150.0,0.00013036,2]
[332601866,1721334625783,141.0324454,0.00013036,2]
[332601872,1721334631794,-93.06738842,0.000135,4]
[332601873,1721334631806,-1107.7717576,0.0001358,2]
[332601875,1721334631817,-615.77052,0.0001358,2]
[332601876,1721334631829,-496.77,0.0001358,2]
[332601877,1721334631840,-521.44331218,0.0001358,2]
[332601878,1721334631859,-2470.24297497,0.0001358,2]
[332601879,1721334631872,-1528.35103245,0.0001358,2]
[332601880,1721334631883,-451.63886766,0.0001358,2]
[332601881,1721334631894,-1003.8012985,0.0001358,2]
[332601882,1721334631919,-1973.22629204,0.0001358,2]
[332601883,1721334631931,-2613.50210701,0.0001358,2]
[332601884,1721334631942,-1579.80960355,0.0001358,2]
[332601885,1721334631958,-8770.3115774,0.0001358,2]
[332601886,1721334631970,-5089.15586786,0.0001358,2]
[332601887,1721334631993,-525.7141499,0.0001358,2]
[332601888,1721334632106,-984.35289335,0.0001358,2]
[332601890,1721334632118,-991.38567962,0.0001358,2]
[332601892,1721334632129,-3173.99540498,0.0001358,2]
[332601894,1721334632139,-700.0,0.000136,4]
[332601895,1721334632148,-1000.0,0.000137,5]
[332601897,1721334632159,-10308.1959,0.0001376,2]
[332601899,1721334632170,-1200.0,0.000138,5]
[332601901,1721334632179,-150.0,0.00013859,2]
[332601903,1721334632188,-29442.0,0.0001386,2]
[332601905,1721334632198,-314.65835573,0.0001389,2]
[332601907,1721334632207,-178.29,0.0001389,2]
[332601909,1721334632216,-200.0,0.000139,5]
[332601911,1721334632226,-150.94,0.0001398,2]
[332601913,1721334632235,-142007.427509,0.0001399,2]
[332601915,1721334632244,-264960.10458,0.0001399,2]
[332601917,1721334632254,-33946.15283538,0.0001399,2]
[332601918,1721334632263,-222.21696831,0.0001399,2]
[332601920,1721334632273,-633.46582986,0.0001399,2]
[332601922,1721334632282,-2461.99493602,0.0001399,2]
[332601924,1721334632292,-497.4113957,0.0001399,2]
[332601926,1721334632301,-150.94,0.0001399,2]
[332601928,1721334632311,-150.94,0.0001399,2]
[332601930,1721334632321,-150.94,0.0001399,2]
[332601932,1721334632330,-150.94,0.0001399,2]
[332601934,1721334632339,-150.94,0.0001399,2]
[332601936,1721334632348,-150.94,0.0001399,2]
[332601937,1721334632358,-150.94,0.0001399,2]
[332601939,1721334632367,-150.94,0.0001399,2]
[332601941,1721334632377,-150.94,0.0001399,2]
[332601943,1721334632386,-9657.29088818,0.0001399,2]
[332601945,1721334632396,-368.12250856,0.0001399,2]
[332601947,1721334632407,-368.12250856,0.0001399,2]
[332601949,1721334632416,-368.12250856,0.0001399,2]
[332601951,1721334632425,-999.99,0.00013997,2]
[332601953,1721334632435,-3761.0,0.00013997,2]
[332601955,1721334632444,-1638.90014625,0.00013997,2]
[332601957,1721334632453,-500.0,0.00013999,2]
[332601959,1721334632462,-347.77593083,0.00013999,2]
[332601961,1721334632472,-500.0,0.00013999,2]
[332601963,1721334632481,-500.0,0.00013999,2]
[332601964,1721334632490,-630.91849351,0.00013999,2]
[332601966,1721334632502,-500.0,0.00013999,2]
[332601968,1721334632512,-500.0,0.00013999,2]
[332601970,1721334632521,-500.0,0.00013999,2]
[332601972,1721334632532,-150.0,0.00013999,2]
[332601974,1721334632541,-236.23306293,0.00013999,7]
[332601976,1721334632551,-55873.75676327,0.00014,2]
[332601978,1721334632562,-4982.1901667,0.00014,2]
[332601980,1721334632573,-287.37338502,0.00014,2]
[332601981,1721334632584,-635.1,0.00014,2]
[332601982,1721334632596,-777.495996,0.00014,2]
[332601983,1721334632618,-263.47322908,0.00014,2]
[332601994,1721334638242,-916.92440523,0.0001389,2]
[332601995,1721334638254,-1034.1753438,0.0001389,2]
[332601996,1721334638266,-2454.43151665,0.0001389,2]
[332601998,1721334638276,-42149.56848335,0.00014,2]
[332602005,1721334638365,-728.98794065,0.00014,2]
[332602006,1721334638377,-323.69313949,0.00014,2]
[332602007,1721334638416,-307.07755376,0.00014,2]
[332602008,1721334638428,-16175.0,0.00014,2]
[332602009,1721334638439,-541.74,0.00014,2]
[332602010,1721334638463,-1631.36205756,0.00014,2]
[332602011,1721334638475,-515.28705452,0.00014,2]
[332602012,1721334638487,-1134.70787623,0.00014,2]
[332602013,1721334638500,-70210.21145951,0.00014,2]
[332602014,1721334638511,-761.45316219,0.00014,2]
[332602015,1721334638529,-4852.6012,0.00014,2]
[332602016,1721334638541,-10535.96684458,0.00014,2]
[332602017,1721334638553,-12497.24843964,0.00014,2]
[332602019,1721334638565,-5139.54579721,0.00014,2]
[332602021,1721334638576,-11038.11827129,0.00014,2]
[332602023,1721334638588,-5213.2416444,0.00014,2]
[332602025,1721334638599,-10057.58,0.00014,2]
[332602029,1721334638632,-1167.56978197,0.00014,2]
[332602031,1721334638643,-23996.93107085,0.00014,2]
[332602033,1721334638655,-944.21775189,0.00014,2]
[332602035,1721334638666,-165959.82642549,0.00014,2]
[332602037,1721334638678,-7570.38815316,0.00014,2]
[332602039,1721334638694,-641.59172865,0.00014,2]
[332602041,1721334638705,-442.25,0.00014,2]
[332602042,1721334638717,-3861.57904239,0.00014,2]
[332602050,1721334639940,-1079.800005,0.00014,2]
[332602051,1721334640014,-24104.6103854,0.00014,2]
[332602052,1721334640026,-900.0,0.00014,2]
[332602053,1721334640037,-587.47,0.00014,2]
[332602054,1721334640048,-3482.59104684,0.00014,2]
[332602055,1721334640076,-3576.0622,0.00014,2]
[332602056,1721334640087,-268.94808824,0.00014,2]
[332602057,1721334640099,-778.64096614,0.00014,2]
[332602058,1721334640110,-27940.88974367,0.00014,2]
[332602059,1721334640153,-503.4787228,0.00014,2]
[332602060,1721334640164,-4199.72311746,0.00014,2]
[332602061,1721334640198,-322.85018007,0.00014,2]
[332602062,1721334640217,-540.18000005,0.00014,2]
[332602063,1721334640228,-3891.36684221,0.00014,2]
[332602064,1721334640245,-843.15773648,0.00014,2]
[332602081,1721334642943,-21011.9297031,0.00014,2]
[332602103,1721334643611,-7805.8,0.00014,2]
[332602105,1721334643624,-1085.140985,0.00014,2]
[332602106,1721334643636,-297.59077079,0.00014,2]
[332602107,1721334643648,-839.35295795,0.00014,2]
[332602108,1721334643660,-630.18302999,0.00014,2]
[332602109,1721334643672,-17592.58799307,0.00014,2]
[332602110,1721334643684,-1224.01061712,0.00014,2]
[332602111,1721334643696,-67268.84094529,0.00014,2]
[332602112,1721334643707,-276.224985,0.00014,2]
[332602113,1721334643719,-695.78167097,0.00014,2]
[332602117,1721334645983,-444.44834743,0.00014,2]
[332602118,1721334645996,-891.59999964,0.00014,2]
[332602135,1721334924735,150.0,0.00012856,2]
[332602136,1721334924756,150.0,0.00012856,2]
[332602137,1721334924778,72.47,0.00012856,2]
[332602140,1721334964196,150.0,0.00012856,2]
[332602141,1721334964217,5.0,0.00012856,2]
[332602142,1721334969918,150.0,0.00012856,2]
[332602143,1721334969941,150.0,0.00012856,2]
[332602144,1721334969961,136.51450858,0.00012856,2]
[332602145,1721334974102,150.0,0.00012856,2]
[332602146,1721334974122,150.0,0.00012856,2]
[332602147,1721334974142,150.0,0.00012856,2]
[332602148,1721334974162,150.0,0.00012856,2]
[332602149,1721334974182,150.0,0.00012856,2]
[332602150,1721334974206,150.0,0.00012856,2]
[332602151,1721334974227,150.0,0.00012856,2]
[332602152,1721334974249,150.0,0.00012856,2]
[332602153,1721334974270,150.0,0.00012856,2]
[332602154,1721334974291,150.0,0.00012856,2]
[332602155,1721334974319,150.0,0.00012856,2]
[332602156,1721334974342,150.0,0.00012856,2]
[332602157,1721334974711,150.0,0.00012856,2]
[332602158,1721334974731,150.0,0.00012856,2]
[332602159,1721334974752,150.0,0.00012856,2]
[332602160,1721334974773,150.0,0.00012856,2]
[332602161,1721334974794,150.0,0.00012856,2]
[332602162,1721334974814,150.0,0.00012856,2]
[332602163,1721334974835,150.0,0.00012856,2]
[332602164,1721334974856,150.0,0.00012856,2]
[332602165,1721334974877,150.0,0.00012856,2]
[332602166,1721334974906,6241.95604685,0.00012856,2]
[332602167,1721335028296,150.0,0.00012856,2]
[332602168,1721335028321,150.0,0.00012856,2]
[332602169,1721335028342,0.12954062,0.00012856,2]
[332602170,1721335049555,150.0,0.00012856,2]
[332602171,1721335049577,141.0324454,0.00012856,2]
[332602172,1721335050007,150.0,0.00012856,2]
[332602173,1721335050030,150.0,0.00012856,2]
[332602174,1721335069625,150.0,0.00012855,2]
[332602175,1721335069645,150.0,0.00012855,2]
[332602176,1721335069665,150.0,0.00012855,2]
[332602177,1721335069930,150.0,0.00012855,2]
[332602178,1721335069951,150.0,0.00012855,2]
[332602179,1721335069972,231.60356944,0.00012855,2]
[332602180,1721335070000,2133.59332481,0.00012855,2]
[332602181,1721335135822,291.0324454,0.00012856,2]
[332602182,1721335135850,10.01434479,0.00012856,2]
[332602183,1721335157472,150.0,0.00012855,2]
[332602184,1721335157493,150.0,0.00012855,2]
[332602185,1721335157513,150.0,0.00012855,2]
[332602186,1721335157534,150.0,0.00012855,2]
[332602187,1721335157557,289.98565521,0.00012855,2]
[332602188,1721335157577,150.0,0.00012855,2]
[332602189,1721335157603,2876.90245145,0.00012855,2]
[332602190,1721335159388,154.54564492,0.00013311,2]
[332602191,1721335161245,-150.0,0.00013311,2]
[332602192,1721335162329,-150.0,0.00013311,2]
[332602193,1721335163661,-150.0,0.00013311,2]
[332602194,1721335164281,-150.0,0.00013311,2]
[332602195,1721335165799,-150.0,0.00013311,2]
[332602196,1721335166485,-150.0,0.00013311,2]
[332602197,1721335167432,-38.45654808,0.00013311,2]
[332602198,1721335168006,111.54345192,0.00013399,2]
[332602199,1721335168486,-150.0,0.00013399,2]
[332602200,1721335169271,-150.0,0.00013399,2]
[332602201,1721335170037,-150.0,0.00013399,2]
[332602202,1721335170498,-150.0,0.00013399,2]
[332602206,1721335267859,-412.61839352,0.00013478,2]
[332602207,1721335267882,-600.0,0.00013479,2]
[332602208,1721335267906,-750.0,0.00013479,2]
[332602209,1721335267935,-300.0,0.00013483,2]
[332602210,1721335267959,-11137.38160648,0.00013484,2]
[332602211,1721335333858,-400.95099339,0.00013379,2]
[332602212,1721335486991,-395.45435508,0.00013298,2]
[332602213,1721335506877,150.0,0.00011228,2]
[332602214,1721335506906,203.84,0.00011228,2]
[332602215,1721335519484,175.95,0.00013087,2]
[332602222,1721335591752,5294.54564492,0.00013042,2]
[332602223,1721335627326,150.00000001,0.000126,2]
[332602234,1721335786239,4468.62273745,0.00012855,2]
[332602248,1721335832136,-366.44506221,0.00013128,2]
[332602249,1721335832152,-1081.18,0.00013129,2]
[332602250,1721335832164,-250.0,0.00013138,2]
[332602251,1721335832178,-150.0,0.00013142,2]
[332602252,1721335832192,-2672.14252526,0.00013205,2]
[332602253,1721335832248,-21227.85747474,0.00013205,2]
[332602254,1721335832261,-200.0,0.00013227,2]
[332602255,1721335832273,-380.32591715,0.00013297,2]
[332602256,1721335832285,-496.89,0.00013323,2]
[332602257,1721335832298,-400.0,0.00013401,2]
[332602258,1721335832312,-353.84,0.00013492,2]
[332602259,1721335832325,-168.83,0.00013613,2]
[332602260,1721335832338,-499.99,0.00013613,2]
[332602261,1721335832352,-5587.0040499,0.00013683,3]
[332602262,1721335832364,-14946.59,0.00013684,2]
[332602263,1721335832377,-852.31,0.00013684,2]
[332602264,1721335832388,-200.0,0.00013699,2]
[332602265,1721335832400,-250.0,0.00013699,2]
[332602266,1721335832413,-244.99,0.00013699,2]
[332602267,1721335832425,-150.0,0.00013859,2]
[332602268,1721335832439,-290.0,0.0001386,2]
[332602269,1721335832452,-17535.26949678,0.0001386,2]
[332602271,1721335832475,-12171.08281847,0.0001386,2]
[332602274,1721335832487,-156.3645126,0.00013899,2]
[332602276,1721335832499,-3964.97813913,0.00013899,2]
[332602277,1721335832512,-162.30891768,0.000139,2]
[332602278,1721335832525,-207.92410251,0.000139,2]
[332602279,1721335832537,-31367.07840253,0.000139,2]
[332602280,1721335832549,-347.37017453,0.000139,2]
[332602281,1721335832561,-298.52622468,0.000139,2]
[332602282,1721335832573,-6438.19392546,0.000139,2]
[332602283,1721335832586,-1641.32995734,0.000139,2]
[332602284,1721335832598,-199.30824592,0.000139,2]
[332602285,1721335832610,-176.59021447,0.00013911,2]
[332602286,1721335832625,-1000.0,0.00013973,5]
[332602287,1721335832637,-1928.24247655,0.0001399,2]
[332602297,1721335838085,-311.29215968,0.000139,2]
[332602298,1721335838095,-1188.70784032,0.0001399,2]
[332602299,1721335838107,-231928.30374613,0.0001399,2]
[332602300,1721335838118,-150.96,0.0001399,2]
[332602301,1721335838128,-742.36440838,0.00013999,5]
[332602302,1721335838139,-300.0,0.00013999,2]
[332602303,1721335838155,-177627.13154561,0.00014,2]
[332602304,1721335838179,-166115.1255967,0.00014,2]
[332602305,1721335838191,-709.08266212,0.00014,2]
[332602325,1721335839046,-9133.61009273,0.00014,2]
[332602326,1721335839188,-5391.8897417,0.00013989,2]
[332602327,1721335839198,-1639.90939481,0.00014,2]
[332602328,1721335839210,-42167.92804241,0.00014,2]
[332602342,1721335840121,-318.885,0.00014,2]
[332602343,1721335840269,-1593.315,0.00014,2]
[332602344,1721335840280,-333.90877626,0.00014,2]
[332602345,1721335840306,-1915.64373984,0.00014,2]
[332602369,1721335843772,-1279.86362425,0.00014,2]
[332602370,1721335843788,-328.00238978,0.00014,2]
[332602372,1721335843799,-32621.08850002,0.00014,2]
[332602379,1721335846100,-84602.45902165,0.00014,2]
[332602380,1721335846111,-988.13635332,0.00014,2]
[332602381,1721335846212,-371.32904387,0.00014,2]
[332602382,1721335846383,-37154.5675891,0.00014,2]
[332602383,1721335846394,-1578.49314389,0.00014,2]
[332602384,1721335846438,-32468.5998169,0.00014,2]
[332602386,1721335846449,-1014.8698506,0.00014,2]
[332602402,1721336556962,-300.0,0.00013578,2]
[332602403,1721336556988,-25831.05732113,0.00013579,2]
[332602404,1721336557014,-152.3647633,0.0001388,2]
[332602405,1721336557040,-150.0,0.00013889,2]
[332602406,1721336557066,-28230.37056225,0.0001389,2]
[332602407,1721336557092,-497.74433376,0.00013899,2]
[332602408,1721336557118,-311.29215967,0.00013899,2]
[332602409,1721336557144,-162.30891768,0.000139,2]
[332602410,1721336557169,-1094.21997156,0.000139,2]
[332602411,1721336557198,-8851.77599938,0.0001398,2]
[332602412,1721336557224,-13277.6639991,0.00013986,2]
[332602413,1721336557251,-648.36921594,0.00013989,2]
[332602414,1721336557278,-185887.295987,0.0001399,2]
[332602415,1721336557307,-217634.494504,0.0001399,2]
[332602416,1721336557334,-1022.4396916,0.00013996,2]
[332602417,1721336557364,-166894.91227918,0.00014,2]
[332602420,1721336837163,-204.54564492,0.000132,2]
[332602421,1721336838461,-150.0,0.000132,2]
[332602422,1721336839861,-150.0,0.000132,2]
[332602423,1721336840631,-150.0,0.000132,2]
[332602424,1721336841210,-150.0,0.000132,2]
[332602425,1721336842111,-150.0,0.000132,2]
[332602426,1721336869881,-150.0,0.00013134,2]
[332602427,1721336941608,150.0,0.0001148,2]
[332602428,1721336941628,150.0,0.0001148,2]
[332602429,1721336941650,150.0,0.0001148,2]
[332602430,1721336941672,8.59,0.0001148,2]
[332602442,1721336977096,150.0,0.00010486,2]
[332602443,1721336977117,126.89,0.00010486,2]
[332602451,1721337003048,150.0,0.00010486,2]
[332602452,1721337003077,150.0,0.00010486,2]
[332602453,1721337003099,150.0,0.00010486,2]
[332602454,1721337003121,150.0,0.00010486,2]